[Event "4NCL 2022-2023"]
[Site "Daventry"]
[Date "2023.02.11"]
[Round "5.5"]
[White "Arkell, Keith C"]
[Black "Webb, Laurence E"]
[Result "1-0"]
[ECO "A43"]
[WhiteElo "2404"]
[BlackElo "2156"]
[Annotator "TA"]
[PlyCount "137"]
[EventDate "2022.10.20"]
[EventType "team-tourn"]
[EventCountry "ENG"]
[SourceTitle "playchess.com"]
[Source "ChessBase"]
[SourceQuality "1"]
[TimeControl "40/6000+30:2400+30"]

{[%evp 18,137,26,29,39,26,10,0,27,27,27,27,27,0,28,22,15,23,78,77,79,32,43,40,77,77,76,76,76,75,80,40,53,37,50,52,58,48,52,59,53,60,72,90,100,101,155,145,254,234,228,241,220,216,401,266,260,265,263,269,263,226,218,221,281,277,275,271,594,406,749,744,707,685,764,751,686,616,611,609,589,576,772,772,725,695,7008,1362,1166,1154,2668,8029,29943,12844,8671,3979,29956,29954,29968,29969,29965,0,4375,2282,29960,29960,12759,5949,29969,29971,29968,29972,29966,29968,29973,29973,29979,29980,29979,29975,29970,12774]} 1. d4 {[%emt 0:05:09]} Nf6 {[%emt 0:00:41]} 2. Nf3 {[%emt 0:00:05]} c5 {[%emt 0:00:49]} 3. d5 {[%emt 0:00:05]} g6 {[%emt 0:00:10]} 4. Nc3 {[%emt 0:00:06]} Bg7 {[%emt 0:00:22]} 5. e4 {[%emt 0:00:04]} d6 {[%emt 0:00:26]} 6. Bb5+ {[%emt 0:00:14]} Bd7 {[%emt 0:00:58]} 7. a4 {[%emt 0:00:05][%cal Ba2a4,Ba4b5][%mdl 32]} O-O {[%emt 0:00:15]} 8. h3 {[%emt 0:00:11]} Bxb5 {[%emt 0:01:16]} 9. axb5 {[%emt 0:00:05]} Nbd7 {[%emt 0:00:09]} 10. O-O {[%emt 0:00:06]} Ne8 {[%emt 0:00:31] A43: Schmid Benoni.} 11. Bf4 {[%emt 0:00:46]} Nc7 {[%emt 0:00:36]} 12. Qe2 {[%emt 0:00:50]} a6 {[%emt 0:01:02] The position is equal.} 13. bxa6 {[%emt 0:00:07]} Rxa6 {[%emt 0:00:22]} 14. Rxa6 {[%emt 0:00:10]} Nxa6 {[%emt 0:00:51] [#]} 15. Nb5 $146 {[%emt 0:08:03]} ({Predecessor:} 15. e5 dxe5 16. Nxe5 Nb4 17. Rd1 Bxe5 18. Bxe5 Nxc2 19. Qxc2 Nxe5 20. Qe4 Qd6 21. Nb5 {½-½ Schroll,G (2321)-Schwabeneder,F (2369) AUT-ch St Johann im Pongau 2016 (9)}) 15... Nc7 {[%emt 0:04:59]} 16. c3 {[%emt 0:00:49]} Nxb5 {[%emt 0:04:17]} 17. Qxb5 {[%emt 0:00:06]} Qc7 {[%emt 0:06:08]} (17... Nf6 $1 $11 {remains equal.}) 18. Ra1 $16 {[%emt 0:01:36]} h6 {[%emt 0:06:52]} 19. Ra7 {[%emt 0:08:04] White is much more active.} (19. Nd2 $16) 19... Rb8 $14 {[%emt 0:11:41]} 20. Nd2 {[%emt 0:04:46]} Nb6 {[%emt 0:03:39]} 21. Qa5 {[%emt 0:06:05] [#] Nc4 would be deadly.} Rc8 {[%emt 0:02:28]} 22. Be3 {[%emt 0:00:46]} Kh7 {[%emt 0:02:47]} 23. Qb5 {[%emt 0:07:20]} Rb8 {[%emt 0:04:41]} 24. Nb1 {[%emt 0:04:05]} Nc8 {[%emt 0:03:03]} 25. Ra5 {[%emt 0:04:40]} e6 {[%emt 0:07:51]} 26. dxe6 {[%emt 0:00:31]} fxe6 {[%emt 0:00:18]} 27. Nd2 {[%emt 0:02:03]} Ne7 {[%emt 0:09:46]} 28. Ra1 {[%emt 0:01:35]} Nc6 {[%emt 0:01:50]} 29. Nf3 {[%emt 0:09:07]} b6 {[%emt 0:03:11]} 30. Bf4 {[%emt 0:01:34] White leaves nothing to chance now.} Rf8 {[%emt 0:13:57]} 31. Bg3 {[%emt 0:01:27]} Be5 {[%emt 0:04:10]} (31... Na5 $142) 32. Nxe5 $16 {[%emt 0:00:31]} dxe5 {[%emt 0:02:24]} (32... Nxe5 $16 {keeps fighting.} 33. Ra6 Rb8) 33. b4 {[%emt 0:06:11]} cxb4 {[%emt 0:10:20]} 34. cxb4 {[%emt 0:00:23] [#] Threatens to win with Rc1.} Nd4 {[%emt 0:01:32]} 35. Qxe5 {[%emt 0:03:09]} Qd7 {[%emt 0:02:33]} (35... Qxe5 36. Bxe5 Nc6) 36. Qd6 {[%emt 0:06:41]} Qxd6 {[%emt 0:01:35]} 37. Bxd6 $18 {[%emt 0:00:26][%mdl 4096] Endgame KRB-KRN} Rf7 {[%emt 0:00:00]} 38. Ra8 {[%emt 0:06:35] Black must now prevent Be5.} g5 {[%emt 0:00:11]} 39. Re8 {[%emt 0:01:45]} Rd7 {[%emt 0:00:43]} 40. Be5 {[%emt 0:02:13]} Nc6 {[%emt 0:00:25]} 41. Rxe6 {[%emt 0:40:41]} Nxb4 {[%emt 0:00:00]} 42. Rxb6 {[%emt 0:00:00]} Rd1+ {[%emt 0:00:00]} (42... Nd3 $142) 43. Kh2 {[%emt 0:00:00]} Nd3 {[%emt 0:00:00]} (43... Nc2 $142 44. Rb7+ Kg8 45. Rg7+ Kf8) 44. Rb7+ {[%emt 0:00:00]} Kg8 {[%emt 0:00:00]} 45. Rd7 {[%emt 0:00:00]} Kf8 {[%emt 0:00:23]} 46. Bg7+ {[%emt 0:00:00]} Ke8 {[%emt 0:00:42]} 47. Rd5 {[%emt 0:00:00]} h5 {[%emt 0:02:43]} 48. f3 {[%emt 0:00:00]} Kf7 {[%emt 0:02:07]} 49. Bc3 {[%emt 0:00:00]} h4 {[%emt 0:06:40]} 50. g3 {[%emt 0:00:00]} hxg3+ {[%emt 0:02:11]} 51. Kxg3 {[%emt 0:00:00]} Rg1+ {[%emt 0:00:06]} 52. Kh2 {[%emt 0:00:00]} Rd1 {[%emt 0:00:06]} 53. h4 {[%emt 0:00:00]} gxh4 {[%emt 0:00:28]} 54. f4 {[%emt 0:00:00]} Rf1 {[%emt 0:03:35]} 55. Rxd3 {[%emt 0:00:00] Intending Kg2 and mate.} Rxf4 {[%emt 0:00:09] KRB-KR} 56. e5 {[%emt 0:00:00] Hoping for Re3.} Rc4 {[%emt 0:00:46]} 57. Rf3+ {[%emt 0:00:00]} Ke6 {[%emt 0:01:01]} 58. Rf6+ {[%emt 0:00:00]} Ke7 {[%emt 0:02:23]} 59. Rf3 {[%emt 0:00:00]} (59. Bd2 $142 Rc2 60. Rd6 Ke8 61. Kh3 Kf7 62. Rf6+ Ke8 63. Bf4 Re2 64. Kxh4) 59... Ke6 {[%emt 0:00:27]} 60. Kg2 {[%emt 0:00:00]} Ra4 {[%emt 0:00:41]} 61. Rf6+ {[%emt 0:00:00]} Ke7 {[%emt 0:00:21]} 62. Rc6 {[%emt 0:00:00] Kh3 would kill now.} Kd7 {[%emt 0:00:26]} 63. Rd6+ {[%emt 0:00:00] White mates.} Ke7 {[%emt 0:00:11]} 64. Bd4 {[%emt 0:00:00]} Ra3 {[%emt 0:02:01]} 65. Rh6 {[%emt 0:00:00]} Rg3+ {[%emt 0:00:24]} 66. Kh2 {[%emt 0:00:00]} Rg4 {[%emt 0:01:12]} 67. Bc5+ {[%emt 0:00:00]} Kf7 {[%emt 0:01:01]} 68. Kh3 {[%emt 0:00:00]} Re4 {[%emt 0:00:27]} 69. Bd6 {[%emt 0:00:00] Weighted Error Value: White=0.15 (very precise) /Black=0.33} ({Not} 69. Rxh4 Rxe5 70. Bd6 Re8 $14) (69. Rf6+ $142 Kg8 70. Bd6 Kh7 71. Kg2 Re3 72. Rf4 Kg6 73. Kf2 Rd3 74. Re4) 1-0

[Event "4NCL 2022-2023"]
[Site "Daventry"]
[Date "2023.02.11"]
[Round "5.6"]
[White "Duncan, Chris R"]
[Black "Kirk, Ezra"]
[Result "0-1"]
[ECO "E94"]
[WhiteElo "2174"]
[BlackElo "2427"]
[Annotator "TA"]
[PlyCount "72"]
[EventDate "2022.10.20"]
[EventType "team-tourn"]
[EventCountry "ENG"]
[SourceTitle "playchess.com"]
[Source "ChessBase"]
[SourceQuality "1"]
[TimeControl "40/6000+30:2400+30"]

{[%evp 18,72,63,29,70,-14,-16,-7,0,-81,-91,-148,-106,-185,-184,-241,-163,-160,-163,-200,-209,-191,-195,-228,-227,-210,-204,-206,-175,-199,-159,-185,-205,-196,-200,-200,-200,-283,-298,-292,-303,-285,-280,-480,-484,-470,-483,-465,-467,-453,-438,-448,-422,-658,-681,-681,-668]} 1. Nf3 {[%emt 0:05:54]} Nf6 {[%emt 0:00:08]} 2. c4 {[%emt 0:00:05]} g6 {[%emt 0:00:05]} 3. Nc3 {[%emt 0:00:14]} Bg7 {[%emt 0:00:22]} 4. d4 {[%emt 0:00:35]} O-O {[%emt 0:00:08]} 5. e4 {[%emt 0:00:05]} d6 {[%emt 0:00:06]} 6. Be2 {[%emt 0:00:15]} Nbd7 {[%emt 0:00:19]} 7. O-O {[%emt 0:00:30]} e5 {[%emt 0:00:07]} 8. Be3 {[%emt 0:00:48]} Qe7 {[%emt 0:00:21]} 9. Qc2 {[%emt 0:01:06]} c6 {[%emt 0:00:55]} 10. Rfe1 {[%emt 0:01:12]} h6 {[%emt 0:01:54] E94: King's Indian: Classical: 6 Be2 e5 7 0-0: Various Black 7th moves.} 11. Rad1 {[%emt 0:00:36]} ({White should play} 11. d5 $14) 11... Ng4 $11 {[%emt 0:02:05]} 12. Bc1 {[%emt 0:00:44]} exd4 {[%emt 0:01:09] The position is equal.} 13. Nxd4 {[%emt 0:03:32]} (13. Rxd4 $11 Bxd4 14. Nxd4) 13... Nxf2 $1 $17 {[%emt 0:04:05][%mdl 64] Decoy} 14. Kxf2 {[%emt 0:00:52] [#]} (14. Nxc6 $142 bxc6 15. Kxf2) 14... Qh4+ $1 {[%emt 0:00:05]} (14... Bxd4+ 15. Rxd4 Qh4+ 16. g3 Qxh2+ 17. Ke3 $11) 15. Kf1 {[%emt 0:53:06]} (15. Kg1 $17 Bxd4+ {[%mdl 64] Deflection} 16. Rxd4 Qxe1+ 17. Bf1) 15... Bxd4 $19 {[%emt 0:02:07][%csl Gd4][%cal Rh4f2] [#]} ({Don't play} 15... Qxh2 16. Nf3 Qg3 17. Qd3 $18) 16. Bf3 $146 {[%emt 0:02:31]} (16. Rxd4 $142 Qf6+ 17. Bf3 Qxd4 18. Bxh6) ({Predecessor:} 16. Rxd4 Qf6+ 17. Bf3 Qxd4 18. Bxh6 Re8 19. Rd1 Qxc4+ 20. Be2 Qc5 21. Qd2 Nf6 22. Qxd6 Qxd6 23. Rxd6 Nxe4 24. Nxe4 Rxe4 {0-1 Wagner,D (2581)-Jones,G (2670) EU-ch qual Online 2020 (9)}) 16... Bg7 {[%emt 0:05:44]} 17. Kg1 {[%emt 0:02:39]} Ne5 {[%emt 0:04:06]} (17... Be5 18. g3 Qf6 19. Rf1 $17) 18. Qf2 {[%emt 0:18:04]} Qxf2+ {[%emt 0:08:48]} 19. Kxf2 {[%emt 0:00:26]} Be6 {[%emt 0:00:56]} ({Stronger than} 19... Nxc4 20. Be2 Be6 21. Bxc4 Bxc4 22. Rxd6) 20. Rxd6 {[%emt 0:01:14]} Nxc4 {[%emt 0:02:40]} ({Worse is} 20... Bxc4 21. Red1) 21. Rdd1 {[%emt 0:00:46]} Ne5 {[%emt 0:04:25]} 22. Be3 {[%emt 0:02:02]} Rfd8 {[%emt 0:02:24] Hoping for ...Nd3+.} 23. Be2 {[%emt 0:02:24] Against Nd3+} b6 {[%emt 0:03:40][%cal Bb7b6,Bb6b5,Bb5b4][%mdl 32]} 24. Kf1 {[%emt 0:04:16]} Nc4 {[%emt 0:06:10]} 25. Bxc4 {[%emt 0:01:10]} Bxc4+ {[%emt 0:00:07]} 26. Kf2 {[%emt 0:00:05]} b5 {[%emt 0:03:35]} 27. Kf3 {[%emt 0:01:30]} (27. a3 $142) 27... b4 {[%emt 0:04:21][%mdl 64] [#] Deflection} 28. Na4 {[%emt 0:01:17]} Bxa2 {[%emt 0:02:55][%cal Bc4a2,Ba2b3,Bb3d1,Bd1c2][%mdl 32] This pair of bishops is nice.} 29. Rxd8+ {[%emt 0:01:57]} Rxd8 {[%emt 0:00:07]} 30. Rc1 $2 {[%emt 0:01:44]} (30. Nc5) 30... Bb3 {[%emt 0:02:20] Black is clearly winning.} 31. Nc5 {[%emt 0:00:12]} Bd1+ {[%emt 0:01:22]} 32. Kf2 {[%emt 0:00:04]} Bxb2 {[%emt 0:00:59]} 33. Rb1 {[%emt 0:00:05]} Bc3 {[%emt 0:02:25]} 34. Nb7 {[%emt 0:00:35]} Rb8 {[%emt 0:13:27] Threatens to win with ...Bc2.} 35. Na5 {[%emt 0:00:50]} (35. Nc5 $142 Rd8 36. Nb7) 35... Bc2 {[%emt 0:00:48][%csl LRb1,LRe4]} 36. Rc1 {[%emt 0:00:41]} Bxe4 {[%emt 0:00:28] White got outplayed after the opening.   Weighted Error Value: White=0.41/Black=0.09 (flawless)} 0-1

[Event "4NCL 2022-2023"]
[Site "Daventry"]
[Date "2023.02.11"]
[Round "5.7"]
[White "Steil-Antoni, Fiona"]
[Black "Ledger, Stephen C"]
[Result "1-0"]
[ECO "B01"]
[WhiteElo "2195"]
[BlackElo "1997"]
[Annotator "TA"]
[PlyCount "69"]
[EventDate "2022.10.20"]
[EventType "team-tourn"]
[EventCountry "ENG"]
[SourceTitle "playchess.com"]
[Source "ChessBase"]
[SourceQuality "1"]
[TimeControl "40/6000+30:2400+30"]

{[%evp 10,69,52,41,52,33,37,35,35,20,46,30,36,19,54,63,63,55,58,61,153,20,25,32,36,0,0,0,0,0,0,0,0,0,0,0,0,0,0,0,20,14,25,14,69,50,58,53,74,75,64,0,16,18,183,198,171,106,501,500,491,483]} 1. e4 {[%emt 0:08:55]} d5 {[%emt 0:00:46]} 2. exd5 {[%emt 0:00:06]} Qxd5 {[%emt 0:00:08]} 3. Nc3 {[%emt 0:00:08]} Qd6 {[%emt 0:00:40]} 4. d4 {[%emt 0:00:37]} Nf6 {[%emt 0:00:45]} 5. Nf3 {[%emt 0:00:32]} c6 {[%emt 0:01:15]} 6. Ne5 {[%emt 0:00:44]} Nbd7 {[%emt 0:05:27] B01: Scandinavian Defence.} 7. Nc4 {[%emt 0:00:56]} Qc7 {[%emt 0:01:55]} 8. Qf3 {[%emt 0:00:29]} Nb6 {[%emt 0:03:24] White is slightly better.} 9. Bf4 {[%emt 0:00:52]} Qd7 {[%emt 0:04:44]} 10. Nxb6 {[%emt 0:02:52]} axb6 {[%emt 0:00:09]} 11. O-O-O {[%emt 0:01:25]} Qg4 {[%emt 0:08:51]} 12. Qe3 {[%emt 0:05:46] Strongly threatening d5.} Qe6 {[%emt 0:13:23] [#]} 13. d5 $1 {[%emt 0:12:11]} Qxe3+ {[%emt 0:04:39]} 14. Bxe3 {[%emt 0:07:13]} cxd5 {[%emt 0:11:13] [#]} (14... e6 $1 $14) 15. Nb5 $146 {[%emt 0:09:30] White is more active.} (15. Bxb6 $6 e6 $14) (15. Bb5+ $16 Bd7 16. Bxd7+ (16. Bxb6 Bxb5 17. Nxb5 Rxa2 $11) 16... Kxd7 17. Nxd5 Nxd5 18. Rxd5+ Kc6 19. Rd3) ({Predecessor:} 15. Nxd5 Nxd5 16. Rxd5 e6 17. Bb5+ Ke7 18. Rd3 g6 19. Bxb6 Bh6+ 20. Kb1 e5 21. Re1 f6 22. Rc3 Bd2 23. Rc7+ Ke6 24. Rd1 Ba5 25. Bxa5 Rxa5 26. Rxc8 {1-0 Van Beek,A (2281)-Bayer,E (2256) Oberliga NRW 1819 2018 (4.4)}) 15... Kd7 $1 $11 {[%emt 0:04:40]} (15... Rxa2 16. Kb1 Ra4 17. Nc7+ (17. Bxb6 e6 $14) 17... Kd7 18. Nxd5 Nxd5 19. Bb5+ (19. Rxd5+ Kc7 $14) 19... Kc7 20. Bxa4 Nxe3 21. fxe3 $16) 16. Bxb6 {[%emt 0:04:17]} Kc6 {[%emt 0:02:00]} 17. Be3 {[%emt 0:10:55][%cal Od1d3]} (17. Bd4 $5 {[%cal Rd1d3]}) 17... e5 {[%emt 0:06:43]} 18. f4 $1 {[%emt 0:13:02][%cal Bf2f4,Bf4e5][%mdl 32]} Ng4 {[%emt 0:09:58]} 19. Bg1 {[%emt 0:05:43]} Bc5 {[%emt 0:04:50] [#] ...Bxg1 would be deadly.} 20. fxe5 $1 {[%emt 0:04:18]} Bxg1 {[%emt 0:03:18]} (20... Rxa2 {feels hotter.} 21. Kb1 Ra8 22. Nd4+ Bxd4 23. Bxd4 Re8) 21. Rxg1 {[%emt 0:00:35]} Rxa2 {[%emt 0:03:58]} 22. Kb1 {[%emt 0:02:43] Repels Ra1+} Ra5 {[%emt 0:02:53]} 23. Nd4+ {[%emt 0:01:31]} Kc7 {[%emt 0:05:21][%cal Oc8e6]} 24. Nb3 {[%emt 0:00:32]} Ra7 {[%emt 0:02:46]} 25. Rxd5 {[%emt 0:01:01]} Be6 {[%emt 0:00:51]} 26. Rc5+ {[%emt 0:00:59]} Kb8 {[%emt 0:01:45]} (26... Kb6 $1 $11) 27. h3 $36 {[%emt 0:02:41][%mdl 2048] White has some pressure.} Ne3 {[%emt 0:01:18]} 28. Be2 {[%emt 0:00:43]} Rd8 {[%emt 0:01:11]} 29. g4 {[%emt 0:02:34]} Ra4 {[%emt 0:01:44]} 30. Bf3 {[%emt 0:06:41]} (30. Rb5 $14) 30... b6 {[%emt 0:00:51]} 31. Rc3 {[%emt 0:03:46]} Nd5 {[%emt 0:01:00]} (31... Nc4 $11 {and Black has nothing to worry.}) 32. Rd3 $18 {[%emt 0:00:30] Black must now prevent Rgd1.} Rf4 {[%emt 0:02:39]} 33. Bh1 {[%emt 0:01:21]} ({Don't take} 33. Rgd1 $6 Rxf3 34. Rxf3 Nc3+ 35. bxc3 Rxd1+ 36. Kb2 Rh1 $11) (33. Bg2 $18 {Threatens to win with Rgd1.} Rd7 34. Rgd1) 33... Kc7 $2 {[%emt 0:01:08][%mdl 8192]} (33... Rd7 $16 {is tougher.}) 34. Rgd1 {[%emt 0:00:19]} Ne3 {[%emt 0:00:42]} 35. Rxd8 {[%emt 0:00:26] Weighted Error Value: White=0.15 (very precise) /Black=0.34} (35. Rxe3 $2 {perishes.} Rxd1+ 36. Nc1 Rff1 $19) 1-0

[Event "4NCL 2022-2023"]
[Site "Daventry"]
[Date "2023.02.11"]
[Round "5.8"]
[White "Varney, Zoe"]
[Black "Boswell, Jacob Connor"]
[Result "0-1"]
[ECO "B00"]
[WhiteElo "1937"]
[BlackElo "2109"]
[Annotator "TA"]
[PlyCount "58"]
[EventDate "2022.10.20"]
[EventType "team-tourn"]
[EventCountry "ENG"]
[SourceTitle "playchess.com"]
[Source "ChessBase"]
[SourceQuality "1"]
[TimeControl "40/6000+30:2400+30"]

{[%evp 10,57,65,63,64,68,60,21,65,62,64,56,84,92,93,83,89,98,177,149,163,131,125,14,14,0,0,0,0,0,0,-598,-595,-590,-586,-645,-640,-698,-697,-1207,-788,-947,-780,-765,-765,-29996,-29997,-29997,-29998,-29999]} 1. d4 {[%emt 0:00:04]} b5 {[%emt 0:03:09]} 2. e4 {[%emt 0:06:08]} a6 {[%emt 0:00:10]} 3. Nf3 {[%emt 0:04:00]} Bb7 {[%emt 0:01:13]} 4. Bd3 {[%emt 0:00:30]} e6 {[%emt 0:04:45]} 5. Be3 {[%emt 0:06:57]} Nf6 {[%emt 0:05:31]} 6. Nbd2 {[%emt 0:03:37]} d6 {[%emt 0:08:47] B00: Queen's Fianchetto Defence, Nimzowitsch Defence.} 7. O-O {[%emt 0:27:20]} Be7 {[%emt 0:03:57]} 8. c3 {[%emt 0:02:13]} O-O {[%emt 0:18:06] The position is equal.} 9. Qc2 {[%emt 0:07:31]} h6 {[%emt 0:04:26]} 10. a4 {[%emt 0:02:41] [#]} Qd7 $146 {[%emt 0:28:31]} ({Predecessor:} 10... c6 11. b4 Nbd7 12. h3 Qc7 13. Rfd1 Rfc8 14. Rdc1 Nb6 {0-1 Esquivel,L-Chicco,G UECC olm1 Gr 3 corr 1999 (1)}) 11. axb5 {[%emt 0:13:09]} axb5 {[%emt 0:00:08]} 12. Qb3 {[%emt 0:00:44]} Rxa1 {[%emt 0:15:44]} 13. Rxa1 {[%emt 0:00:03]} Nxe4 {[%emt 0:08:12]} 14. Nxe4 {[%emt 0:10:40]} Bd5 {[%emt 0:00:10]} 15. Qc2 {[%emt 0:13:10] And now Ng3 would win.} ({Don't take} 15. Qxb5 $6 Qxb5 16. Bxb5 Bxe4 $14) 15... f5 {[%emt 0:00:03] [#]} 16. Nc5 {[%emt 0:01:40]} dxc5 $11 {[%emt 0:00:25]} 17. Ne5 {[%emt 0:00:01]} Qe8 {[%emt 0:04:11]} 18. dxc5 {[%emt 0:02:46]} Bf6 {[%emt 0:00:40]} 19. Bd4 {[%emt 0:01:08]} Nc6 {[%emt 0:00:31]} 20. Bxb5 $2 {[%emt 0:02:35][%mdl 8192]} (20. Qe2 $11) 20... Nxd4 $19 {[%emt 0:00:30][%mdl 64] [#] Discovered Attack} ({Not} 20... Bxe5 21. Bxe5 Qe7 22. Bxc6 Bxc6 23. b4 $16) 21. cxd4 {[%emt 0:02:44]} Qxb5 {[%emt 0:00:05]} 22. Ng6 {[%emt 0:00:13]} Rb8 {[%emt 0:00:39]} 23. h3 {[%emt 0:01:06]} Qxb2 {[%emt 0:00:27]} 24. Qa4 {[%emt 0:00:19]} Qxd4 {[%emt 0:00:40]} 25. Ne7+ {[%emt 0:00:17]} Kh7 {[%emt 0:00:24]} ({Inferior is} 25... Bxe7 26. Qxd4 Bf6 27. Qd1 $11) 26. Qxd4 {[%emt 0:01:04]} Bxd4 {[%emt 0:00:02] A strong pair of Bishops.} 27. Ra7 {[%emt 0:00:42]} Rb1+ {[%emt 0:00:18] Black mates.} 28. Kh2 {[%emt 0:00:01]} Be5+ {[%emt 0:01:00]} 29. g3 {[%emt 0:00:25]} Rh1# {[%emt 0:02:16] Artfully played by Boswell.   Weighted Error Value: White=0.97/Black=0.47} 0-1

[Event "4NCL 2022-2023"]
[Site "Daventry"]
[Date "2023.02.11"]
[Round "5.9"]
[White "Parligras, Mircea-Emilian"]
[Black "Chow, Samuel"]
[Result "0-1"]
[ECO "D85"]
[WhiteElo "2570"]
[BlackElo "2308"]
[Annotator "TA"]
[PlyCount "58"]
[EventDate "2022.10.20"]
[EventType "team-tourn"]
[EventCountry "ENG"]
[SourceTitle "playchess.com"]
[Source "ChessBase"]
[SourceQuality "1"]
[TimeControl "40/6000+30:2400+30"]

{[%evp 15,58,20,3,0,13,0,0,0,0,0,0,4,2,7,21,0,0,-2,-18,-26,0,0,0,-28,-32,-81,-91,-82,-82,-132,-107,-147,-148,-137,-145,-135,-145,-189,-191,-440,-453,-521,-533,-696,-686]} 1. d4 {[%emt 0:00:04]} Nf6 {[%emt 0:00:11]} 2. c4 {[%emt 0:00:08]} g6 {[%emt 0:00:23]} 3. Nc3 {[%emt 0:00:08]} d5 {[%emt 0:00:18]} 4. cxd5 {[%emt 0:00:13]} Nxd5 {[%emt 0:00:11]} 5. e4 {[%emt 0:00:06]} Nxc3 {[%emt 0:00:21]} 6. bxc3 {[%emt 0:00:10]} Bg7 {[%emt 0:00:11]} 7. Nf3 {[%emt 0:00:12]} c5 {[%emt 0:00:10]} 8. Be3 {[%emt 0:00:22] 8.h3 is a critical line.} Qa5 {[%emt 0:00:46]} 9. Nd2 {[%emt 0:00:16] D85: Exchange Grünfeld: Unusual White 7th moves and lines with 7 Nf3.} (9. dxc5 $2 {loses.} Qxc3+ 10. Bd2 Qxa1 $19) 9... O-O {[%emt 0:01:19]} 10. Be2 {[%emt 0:00:30]} Qxc3 {[%emt 0:01:44]} 11. Rc1 {[%emt 0:00:56] The position is equal.} Qb4 {[%emt 0:01:26]} 12. Rc4 {[%emt 0:07:29]} Qb2 {[%emt 0:01:06][%cal Rc5d4]} 13. Rc2 {[%emt 0:03:48]} Qb4 {[%emt 0:02:42]} 14. Rxc5 {[%emt 0:02:57]} Nc6 {[%emt 0:12:55]} 15. Rc4 {[%emt 0:09:21]} Qb2 {[%emt 0:03:23][%cal Rg7d4]} 16. Nb3 {[%emt 0:06:20]} Qxa2 {[%emt 0:04:28]} 17. O-O {[%emt 0:03:41]} Rd8 {[%emt 0:11:10] [#]} (17... Na5 $5 {[%cal Ra2b3]} 18. Nc1 Qb1 $11) 18. d5 $146 {[%emt 0:03:46] Threatens to win with Nd2.} ({Predecessor:} 18. Nc5 Nxd4 19. Bxd4 Bxd4 20. Rxd4 Rxd4 21. Qxd4 Qxe2 22. Qd8+ Kg7 23. Nd7 Bxd7 24. Qxa8 Qxe4 25. Qxa7 {½-½ Carvalho,L (2262)-Castor,E (2058) BRA Cup26 final email 2014}) 18... e6 {[%emt 0:06:34]} 19. Nc5 {[%emt 0:20:08] Strongly threatening Ra4.} exd5 {[%emt 0:04:30]} 20. Ra4 {[%emt 0:03:58]} (20. exd5 $15 b6 21. Rc2 Qxd5 22. Qxd5 Rxd5 23. Bf3) 20... Qb2 $17 {[%emt 0:00:19] White must now prevent ...dxe4.} 21. exd5 {[%emt 0:00:07] Nd3 would be deadly.} Bf5 {[%emt 0:06:02]} 22. Rc4 {[%emt 0:02:35]} ({White should try} 22. Nd3 Bxd3 23. Qxd3) 22... Ne5 {[%emt 0:07:48]} 23. Bd4 {[%emt 0:09:36] [#]} Qa2 {[%emt 0:00:54] Black is more active.} ({Worse is} 23... Rxd5 24. Bxb2 Rxd1 25. Rxd1 $15) 24. Bxe5 {[%emt 0:00:19]} Bxe5 {[%emt 0:00:11]} 25. Nxb7 {[%emt 0:00:10] [#]} Rdb8 {[%emt 0:04:29]} 26. Rb4 {[%emt 0:07:44]} a5 {[%emt 0:02:37]} 27. Rb5 {[%emt 0:02:17]} (27. Bc4 {is the only way for White.} Qc2 28. Qxc2 Bxc2 29. Rb5) 27... Bd7 $19 {[%emt 0:04:04] A strong pair of Bishops. Black is clearly winning.} 28. Rb1 {[%emt 0:00:47]} Ra7 {[%emt 0:01:29]} 29. Bg4 {[%emt 0:05:26]} Raxb7 {[%emt 0:01:30] Weighted Error Value: White=0.43/Black=0.03 (flawless)} 0-1